[Event "*** Titled Tuesday Blitz"]
[Site "Chess.com"]
[Date "2021.02.02"]
[Round "8"]
[White "anon481216"]
[Black "CheckThis4"]
[Result "1-0"]
[WhiteElo "2466"]
[BlackElo "2559"]
[TimeControl "180+1"]
[EndTime "11:31:03 PST"]
[Termination "anon481216 won on time"]

1. d4 {[%clk 0:03:00.9]} 1... d5 {[%clk 0:02:55.7]} 2. c4 {[%clk 0:03:00.5]}
2... e6 {[%clk 0:02:49]} 3. Nf3 {[%clk 0:03:00.3]} 3... Nf6 {[%clk 0:02:48.7]}
4. g3 {[%clk 0:03:00]} 4... dxc4 {[%clk 0:02:46.7]} 5. Bg2 {[%clk 0:02:59.6]}
5... Bb4+ {[%clk 0:02:46.6]} 6. Bd2 {[%clk 0:02:59.1]} 6... c5 {[%clk
0:02:46.5]} 7. O-O {[%clk 0:02:41.5]} 7... O-O {[%clk 0:02:44.7]} 8. Bxb4 {[%clk
0:02:31.1]} 8... cxb4 {[%clk 0:02:44.1]} 9. Ne5 {[%clk 0:02:31.7]} 9... Nc6
{[%clk 0:02:33.8]} 10. Nxc6 {[%clk 0:02:29.2]} 10... bxc6 {[%clk 0:02:32.9]} 11.
Bxc6 {[%clk 0:02:29.7]} 11... Rb8 {[%clk 0:02:27.3]} 12. Bg2 {[%clk 0:02:24.6]}
12... Qb6 {[%clk 0:02:24.9]} 13. e3 {[%clk 0:02:20.7]} 13... a5 {[%clk
0:02:22.5]} 14. Nd2 {[%clk 0:02:15]} 14... Ba6 {[%clk 0:02:22.2]} 15. Ne4 {[%clk
0:02:12.4]} 15... Nxe4 {[%clk 0:02:19.3]} 16. Bxe4 {[%clk 0:02:12.1]} 16... Rfc8
{[%clk 0:02:15.9]} 17. Qh5 {[%clk 0:01:55.6]} 17... g6 {[%clk 0:02:11.4]} 18.
Qe5 {[%clk 0:01:55.3]} 18... c3 {[%clk 0:02:06.4]} 19. Rfb1 {[%clk 0:01:54.1]}
19... Bb7 {[%clk 0:01:29.7]} 20. bxc3 {[%clk 0:01:42.7]} 20... Bxe4 {[%clk
0:01:28.5]} 21. Qxe4 {[%clk 0:01:42.3]} 21... Rxc3 {[%clk 0:01:26.4]} 22. h4
{[%clk 0:01:32.2]} 22... h5 {[%clk 0:01:23.1]} 23. d5 {[%clk 0:01:17.4]} 23...
exd5 {[%clk 0:01:20]} 24. Qxd5 {[%clk 0:01:17.3]} 24... Rd8 {[%clk 0:01:19.1]}
25. Qe5 {[%clk 0:01:14.6]} 25... Rd2 {[%clk 0:01:13.1]} 26. Rd1 {[%clk
0:01:10.3]} 26... Rcc2 {[%clk 0:00:52.2]} 27. Rxd2 {[%clk 0:01:10.1]} 27... Rxd2
{[%clk 0:00:53.1]} 28. Rc1 {[%clk 0:01:09.8]} 28... Qd8 {[%clk 0:00:50.2]} 29.
Rc7 {[%clk 0:00:24.1]} 29... Rd1+ {[%clk 0:00:38]} 30. Kh2 {[%clk 0:00:20.1]}
30... Rd6 {[%clk 0:00:27.6]} 31. Qxa5 {[%clk 0:00:17.1]} 31... Qf6 {[%clk
0:00:23.9]} 32. Rc2 {[%clk 0:00:11]} 32... Rb6 {[%clk 0:00:19.7]} 33. Qa8+
{[%clk 0:00:10.8]} 33... Kg7 {[%clk 0:00:19.1]} 34. Qe4 {[%clk 0:00:11.4]} 34...
Kh7 {[%clk 0:00:15.6]} 35. Qd4 {[%clk 0:00:11.3]} 35... Qf5 {[%clk 0:00:16]} 36.
Rd2 {[%clk 0:00:10.9]} 36... Rf6 {[%clk 0:00:15.2]} 37. Kg2 {[%clk 0:00:10.4]}
37... Qf3+ {[%clk 0:00:14.6]} 38. Kh2 {[%clk 0:00:10.7]} 38... Rc6 {[%clk
0:00:13.8]} 39. Qf4 {[%clk 0:00:10.2]} 39... Qxf4 {[%clk 0:00:10.9]} 40. gxf4
{[%clk 0:00:10.7]} 40... Kg7 {[%clk 0:00:11.4]} 41. Rd4 {[%clk 0:00:10.7]} 41...
Rc2 {[%clk 0:00:11]} 42. Kg3 {[%clk 0:00:11.2]} 42... Rb2 {[%clk 0:00:09.1]} 43.
Rc4 {[%clk 0:00:11.2]} 43... Kf6 {[%clk 0:00:09.4]} 44. Kf3 {[%clk 0:00:11.5]}
44... Kf5 {[%clk 0:00:09.6]} 45. Rc5+ {[%clk 0:00:11.6]} 45... Ke6 {[%clk
0:00:09.1]} 46. Rb5 {[%clk 0:00:12.2]} 46... Rxa2 {[%clk 0:00:07.7]} 47. Rxb4
{[%clk 0:00:12.2]} 47... Kf5 {[%clk 0:00:07.6]} 48. Rb5+ {[%clk 0:00:12.3]}
48... Kf6 {[%clk 0:00:07.7]} 49. Rg5 {[%clk 0:00:11.8]} 49... Rb2 {[%clk
0:00:07.1]} 50. f5 {[%clk 0:00:12]} 50... Rb4 {[%clk 0:00:05]} 51. Kg3 {[%clk
0:00:07.8]} 51... gxf5 {[%clk 0:00:03.9]} 52. Rxh5 {[%clk 0:00:07.8]} 52... Rg4+
{[%clk 0:00:04.5]} 53. Kf3 {[%clk 0:00:08.1]} 53... Kg6 {[%clk 0:00:03.1]} 54.
Rh8 {[%clk 0:00:08]} 54... Kg7 {[%clk 0:00:03.4]} 55. Rh5 {[%clk 0:00:07.9]}
55... Kg6 {[%clk 0:00:03.4]} 56. Rg5+ {[%clk 0:00:07.4]} 56... Rxg5 {[%clk
0:00:03.1]} 57. hxg5 {[%clk 0:00:07.9]} 57... Kxg5 {[%clk 0:00:04]} 58. Kg3
{[%clk 0:00:08.3]} 58... Kg6 {[%clk 0:00:02.8]} 59. Kh4 {[%clk 0:00:07.9]} 59...
Kh6 {[%clk 0:00:02.2]} 60. f3 {[%clk 0:00:08]} 60... Kg6 {[%clk 0:00:02.2]} 61.
Kg3 {[%clk 0:00:07.6]} 61... Kg5 {[%clk 0:00:02.3]} 62. f4+ {[%clk 0:00:06.5]}
1-0

[Event "*** Titled Tuesday Blitz"]
[Site "Chess.com"]
[Date "2021.02.02"]
[Round "8"]
[White "Artyom_ChessMate"]
[Black "frederiksvane"]
[Result "1/2-1/2"]
[WhiteElo "2569"]
[BlackElo "2753"]
[TimeControl "180+1"]
[EndTime "11:31:04 PST"]
[Termination "Game drawn - insufficient material"]

1. e4 {[%clk 0:03:00.9]} 1... c5 {[%clk 0:02:53.7]} 2. Nc3 {[%clk 0:03:00.9]}
2... e6 {[%clk 0:02:53.2]} 3. Nge2 {[%clk 0:03:00.2]} 3... Nc6 {[%clk
0:02:52.4]} 4. g3 {[%clk 0:02:57.4]} 4... Nf6 {[%clk 0:02:49.5]} 5. Bg2 {[%clk
0:02:56.8]} 5... d5 {[%clk 0:02:50.4]} 6. exd5 {[%clk 0:02:55.3]} 6... exd5
{[%clk 0:02:51.3]} 7. d4 {[%clk 0:02:55.5]} 7... cxd4 {[%clk 0:02:51]} 8. Nxd4
{[%clk 0:02:56.4]} 8... Bg4 {[%clk 0:02:49.6]} 9. Qd3 {[%clk 0:02:53.2]} 9...
Bc5 {[%clk 0:02:45.3]} 10. Nxc6 {[%clk 0:02:52.4]} 10... bxc6 {[%clk 0:02:44.8]}
11. O-O {[%clk 0:02:53.3]} 11... O-O {[%clk 0:02:44.4]} 12. Bg5 {[%clk
0:02:53.2]} 12... h6 {[%clk 0:02:39.7]} 13. Bf4 {[%clk 0:02:53.1]} 13... Bh5
{[%clk 0:02:27.1]} 14. Na4 {[%clk 0:02:46.3]} 14... Bd6 {[%clk 0:02:09.5]} 15.
Bxd6 {[%clk 0:02:43.2]} 15... Qxd6 {[%clk 0:02:10.4]} 16. Qd4 {[%clk 0:02:37.8]}
16... Nd7 {[%clk 0:02:01.3]} 17. b4 {[%clk 0:02:35.6]} 17... a5 {[%clk
0:01:56.7]} 18. a3 {[%clk 0:02:34.6]} 18... axb4 {[%clk 0:01:56.9]} 19. axb4
{[%clk 0:02:35.5]} 19... Be2 {[%clk 0:01:51.1]} 20. Rfe1 {[%clk 0:02:33.9]}
20... Bb5 {[%clk 0:01:50.5]} 21. Nc5 {[%clk 0:01:59.5]} 21... Nxc5 {[%clk
0:01:39.7]} 22. bxc5 {[%clk 0:02:00.4]} 22... Rxa1 {[%clk 0:01:40]} 23. Rxa1
{[%clk 0:01:57.4]} 23... Qe7 {[%clk 0:01:40.4]} 24. Bf1 {[%clk 0:01:49.8]} 24...
Bxf1 {[%clk 0:01:30.2]} 25. Kxf1 {[%clk 0:01:50.7]} 25... Rb8 {[%clk 0:01:30.4]}
26. c4 {[%clk 0:01:37.9]} 26... dxc4 {[%clk 0:01:02.9]} 27. Qxc4 {[%clk
0:01:38.8]} 27... Rb5 {[%clk 0:00:56.7]} 28. Ra8+ {[%clk 0:01:36.9]} 28... Kh7
{[%clk 0:00:56.7]} 29. Qd3+ {[%clk 0:01:37.1]} 29... g6 {[%clk 0:00:49.5]} 30.
Qd4 {[%clk 0:01:31.8]} 30... f6 {[%clk 0:00:18.5]} 31. Rd8 {[%clk 0:01:30.2]}
31... Rb7 {[%clk 0:00:16.5]} 32. Rd6 {[%clk 0:01:30.2]} 32... Kg7 {[%clk
0:00:11.3]} 33. Rxc6 {[%clk 0:01:17.1]} 33... Rd7 {[%clk 0:00:11.5]} 34. Rd6
{[%clk 0:01:16]} 34... Rxd6 {[%clk 0:00:10.9]} 35. cxd6 {[%clk 0:01:11.8]} 35...
Qd7 {[%clk 0:00:10.9]} 36. Qd5 {[%clk 0:01:06.2]} 36... f5 {[%clk 0:00:09.6]}
37. Qe5+ {[%clk 0:01:05.6]} 37... Kf7 {[%clk 0:00:08.8]} 38. h4 {[%clk
0:01:05.1]} 38... Qe6 {[%clk 0:00:06.1]} 39. Qd4 {[%clk 0:01:02]} 39... Ke8
{[%clk 0:00:05]} 40. d7+ {[%clk 0:00:48.8]} 40... Qxd7 {[%clk 0:00:04.3]} 41.
Qh8+ {[%clk 0:00:49.1]} 41... Ke7 {[%clk 0:00:02.5]} 42. Qg7+ {[%clk 0:00:49.1]}
42... Kd8 {[%clk 0:00:02.1]} 43. Qxg6 {[%clk 0:00:48]} 43... Qd3+ {[%clk
0:00:02.2]} 44. Kg1 {[%clk 0:00:46.2]} 44... Qd1+ {[%clk 0:00:02]} 45. Kg2
{[%clk 0:00:46.4]} 45... Qd5+ {[%clk 0:00:02.5]} 46. Kh2 {[%clk 0:00:45.6]}
46... Qf3 {[%clk 0:00:03.1]} 47. Qf6+ {[%clk 0:00:45.6]} 47... Ke8 {[%clk
0:00:03.6]} 48. Qe5+ {[%clk 0:00:45.7]} 48... Kf7 {[%clk 0:00:03.7]} 49. Qc7+
{[%clk 0:00:45.2]} 49... Kg6 {[%clk 0:00:03.9]} 50. Qd6+ {[%clk 0:00:45.2]}
50... Kh5 {[%clk 0:00:03.3]} 51. Qd4 {[%clk 0:00:45.3]} 51... Kg6 {[%clk
0:00:01.8]} 52. Qe3 {[%clk 0:00:42.6]} 52... Qxe3 {[%clk 0:00:01.5]} 53. fxe3
{[%clk 0:00:43.5]} 53... Kf6 {[%clk 0:00:01.8]} 54. Kg2 {[%clk 0:00:43.7]} 54...
Ke5 {[%clk 0:00:02.3]} 55. h5 {[%clk 0:00:39.6]} 55... Kf6 {[%clk 0:00:02.1]}
56. Kf2 {[%clk 0:00:05.6]} 56... Kg5 {[%clk 0:00:02.3]} 57. Kf3 {[%clk
0:00:06.5]} 57... Kxh5 {[%clk 0:00:02.7]} 58. Kf4 {[%clk 0:00:06.6]} 58... Kg6
{[%clk 0:00:03.4]} 59. g4 {[%clk 0:00:07.1]} 59... fxg4 {[%clk 0:00:04.3]} 60.
Kxg4 {[%clk 0:00:08]} 60... h5+ {[%clk 0:00:04.8]} 61. Kh4 {[%clk 0:00:08.9]}
61... Kf5 {[%clk 0:00:05.2]} 62. e4+ {[%clk 0:00:09.3]} 62... Kxe4 {[%clk
0:00:06.1]} 63. Kg5 {[%clk 0:00:09.7]} 63... Ke3 {[%clk 0:00:07]} 64. Kh4 {[%clk
0:00:09.9]} 64... Kf4 {[%clk 0:00:06.8]} 65. Kxh5 {[%clk 0:00:10.8]} 1/2-1/2

[Event "*** Titled Tuesday Blitz"]
[Site "Chess.com"]
[Date "2021.02.02"]
[Round "8"]
[White "Naaas1"]
[Black "KaterinaMiroshnik"]
[Result "1/2-1/2"]
[WhiteElo "2759"]
[BlackElo "2618"]
[TimeControl "180+1"]
[EndTime "11:31:09 PST"]
[Termination "Game drawn - insufficient material"]

1. Nf3 {[%clk 0:03:00.9]} 1... e6 {[%clk 0:02:53.6]} 2. c4 {[%clk 0:03:00.8]}
2... d5 {[%clk 0:02:53.6]} 3. d4 {[%clk 0:03:00.2]} 3... Nf6 {[%clk 0:02:53.2]}
4. g3 {[%clk 0:03:00.6]} 4... dxc4 {[%clk 0:02:50.7]} 5. Bg2 {[%clk 0:03:00.7]}
5... Bd7 {[%clk 0:02:50.8]} 6. Ne5 {[%clk 0:02:59.7]} 6... Bc6 {[%clk
0:02:50.8]} 7. Nxc6 {[%clk 0:03:00.2]} 7... Nxc6 {[%clk 0:02:51.3]} 8. Qa4
{[%clk 0:02:59.1]} 8... Qd7 {[%clk 0:02:51.3]} 9. e3 {[%clk 0:02:59.7]} 9...
O-O-O {[%clk 0:02:48.7]} 10. Bxc6 {[%clk 0:02:48]} 10... Qxc6 {[%clk 0:02:47.6]}
11. Qxc6 {[%clk 0:02:48.5]} 11... bxc6 {[%clk 0:02:47.9]} 12. Nd2 {[%clk
0:02:41.5]} 12... c5 {[%clk 0:02:45.1]} 13. dxc5 {[%clk 0:02:40.9]} 13... Bxc5
{[%clk 0:02:41.9]} 14. Nxc4 {[%clk 0:02:40]} 14... Bb4+ {[%clk 0:02:41.4]} 15.
Bd2 {[%clk 0:02:36.7]} 15... Bxd2+ {[%clk 0:02:39.2]} 16. Nxd2 {[%clk
0:02:37.6]} 16... Rd5 {[%clk 0:02:38.9]} 17. Ke2 {[%clk 0:02:34.9]} 17... Rhd8
{[%clk 0:02:37.5]} 18. Nc4 {[%clk 0:02:32.6]} 18... Ne4 {[%clk 0:02:22.3]} 19.
Rac1 {[%clk 0:02:28.6]} 19... Nc5 {[%clk 0:02:09.9]} 20. Rc2 {[%clk 0:02:24.9]}
20... Nd3 {[%clk 0:02:06.7]} 21. b3 {[%clk 0:02:12]} 21... Ne5 {[%clk
0:01:54.6]} 22. Nxe5 {[%clk 0:02:09.9]} 22... Rxe5 {[%clk 0:01:54.3]} 23. Rhc1
{[%clk 0:02:10.5]} 23... Rd7 {[%clk 0:01:54.2]} 24. Rc4 {[%clk 0:02:04.4]} 24...
Ra5 {[%clk 0:01:52.4]} 25. R1c2 {[%clk 0:02:04.5]} 25... Kb7 {[%clk 0:01:49.5]}
26. f4 {[%clk 0:02:03.5]} 26... Rad5 {[%clk 0:01:48.9]} 27. g4 {[%clk
0:01:59.2]} 27... f5 {[%clk 0:01:44.9]} 28. h3 {[%clk 0:01:53.3]} 28... fxg4
{[%clk 0:01:41.1]} 29. hxg4 {[%clk 0:01:54.2]} 29... h5 {[%clk 0:01:40.6]} 30.
Kf3 {[%clk 0:01:47]} 30... g5 {[%clk 0:01:27.8]} 31. Rc5 {[%clk 0:01:31.3]}
31... hxg4+ {[%clk 0:01:19.1]} 32. Kxg4 {[%clk 0:01:32.2]} 32... gxf4 {[%clk
0:01:19.2]} 33. Rxd5 {[%clk 0:01:32.1]} 33... Rxd5 {[%clk 0:01:16.1]} 34. exf4
{[%clk 0:01:33]} 34... a5 {[%clk 0:01:07.5]} 35. Re2 {[%clk 0:01:31.9]} 35...
Rd6 {[%clk 0:00:57.5]} 36. Kg5 {[%clk 0:01:31.1]} 36... Kc8 {[%clk 0:00:56.9]}
37. Re5 {[%clk 0:01:15]} 37... Ra6 {[%clk 0:00:55.2]} 38. Kf6 {[%clk 0:01:08.5]}
38... Kd7 {[%clk 0:00:54.9]} 39. Kf7 {[%clk 0:00:59]} 39... a4 {[%clk
0:00:49.4]} 40. b4 {[%clk 0:00:57.2]} 40... Rd6 {[%clk 0:00:45.2]} 41. Re4
{[%clk 0:00:39.3]} 41... Rd2 {[%clk 0:00:42.1]} 42. a3 {[%clk 0:00:38.9]} 42...
Rf2 {[%clk 0:00:33.4]} 43. Rd4+ {[%clk 0:00:38.5]} 43... Kc6 {[%clk 0:00:31.8]}
44. Kxe6 {[%clk 0:00:38.8]} 44... Rf3 {[%clk 0:00:30.4]} 45. Rc4+ {[%clk
0:00:33.5]} 45... Kb5 {[%clk 0:00:28.4]} 46. Rc5+ {[%clk 0:00:33.6]} 46... Kb6
{[%clk 0:00:27]} 47. f5 {[%clk 0:00:33.6]} 47... Rxa3 {[%clk 0:00:26.8]} 48. f6
{[%clk 0:00:33.3]} 48... Re3+ {[%clk 0:00:24.8]} 49. Kd7 {[%clk 0:00:24.9]}
49... Rf3 {[%clk 0:00:23.8]} 50. Ke7 {[%clk 0:00:24.4]} 50... a3 {[%clk
0:00:22]} 51. f7 {[%clk 0:00:21.8]} 51... a2 {[%clk 0:00:18.8]} 52. Ra5 {[%clk
0:00:21.5]} 52... Rxf7+ {[%clk 0:00:15.4]} 53. Kxf7 {[%clk 0:00:21.1]} 53... c5
{[%clk 0:00:15.6]} 54. Rxa2 {[%clk 0:00:16.7]} 54... cxb4 {[%clk 0:00:15.8]} 55.
Ke6 {[%clk 0:00:17.4]} 55... Kc5 {[%clk 0:00:16]} 56. Ke5 {[%clk 0:00:16.4]}
56... Kc4 {[%clk 0:00:15.7]} 57. Ke4 {[%clk 0:00:16.5]} 57... Kc3 {[%clk
0:00:13]} 58. Rh2 {[%clk 0:00:05.6]} 58... b3 {[%clk 0:00:12.8]} 59. Rh3+ {[%clk
0:00:06]} 59... Kc2 {[%clk 0:00:12.6]} 60. Kd4 {[%clk 0:00:05.4]} 60... b2
{[%clk 0:00:11.7]} 61. Rh2+ {[%clk 0:00:05.8]} 61... Kb3 {[%clk 0:00:11.7]} 62.
Rh1 {[%clk 0:00:04.8]} 62... Kc2 {[%clk 0:00:11.9]} 63. Kc4 {[%clk 0:00:04]}
63... b1=Q {[%clk 0:00:10.8]} 64. Rh2+ {[%clk 0:00:04.4]} 64... Kc1 {[%clk
0:00:09.2]} 65. Rh1+ {[%clk 0:00:04.7]} 65... Kb2 {[%clk 0:00:09.2]} 66. Rxb1+
{[%clk 0:00:05]} 66... Kxb1 {[%clk 0:00:09.6]} 1/2-1/2

[Event "*** Titled Tuesday Blitz"]
[Site "Chess.com"]
[Date "2021.02.02"]
[Round "8"]
[White "OhanyanEminChess"]
[Black "Sam_ChessMood"]
[Result "1/2-1/2"]
[WhiteElo "2655"]
[BlackElo "2831"]
[TimeControl "180+1"]
[EndTime "11:31:10 PST"]
[Termination "Game drawn by repetition"]

1. e4 {[%clk 0:02:59.1]} 1... e5 {[%clk 0:02:59.1]} 2. Nc3 {[%clk 0:02:58.2]}
2... Nf6 {[%clk 0:02:57.9]} 3. Bc4 {[%clk 0:02:58.5]} 3... Nxe4 {[%clk
0:02:57.7]} 4. Qh5 {[%clk 0:02:58.1]} 4... Nd6 {[%clk 0:02:57]} 5. Qxe5+ {[%clk
0:02:58.8]} 5... Qe7 {[%clk 0:02:55.6]} 6. Qxe7+ {[%clk 0:02:59.2]} 6... Bxe7
{[%clk 0:02:56.5]} 7. Bb3 {[%clk 0:02:59.4]} 7... O-O {[%clk 0:02:55.2]} 8. Nge2
{[%clk 0:02:58.1]} 8... Nf5 {[%clk 0:02:19.4]} 9. O-O {[%clk 0:02:54.8]} 9... c6
{[%clk 0:02:17.2]} 10. Nd1 {[%clk 0:02:54.3]} 10... d5 {[%clk 0:02:16.4]} 11. d4
{[%clk 0:02:53.7]} 11... Nd7 {[%clk 0:01:59.5]} 12. Ne3 {[%clk 0:02:52.4]} 12...
Nf6 {[%clk 0:01:58.1]} 13. c3 {[%clk 0:02:52]} 13... Bd6 {[%clk 0:01:55.2]} 14.
Bc2 {[%clk 0:02:51.6]} 14... Nxe3 {[%clk 0:01:54.8]} 15. Bxe3 {[%clk 0:02:52.5]}
15... Re8 {[%clk 0:01:51.9]} 16. Rfe1 {[%clk 0:02:51.2]} 16... Bg4 {[%clk
0:01:42.5]} 17. Ng3 {[%clk 0:02:47.6]} 17... g6 {[%clk 0:01:39.1]} 18. f3 {[%clk
0:02:47.2]} 18... Bd7 {[%clk 0:01:37.4]} 19. Kf2 {[%clk 0:02:47.3]} 19... Kg7
{[%clk 0:01:35.9]} 20. Bd2 {[%clk 0:02:43.8]} 20... h6 {[%clk 0:01:29.1]} 21.
Re2 {[%clk 0:02:25.6]} 21... Rxe2+ {[%clk 0:01:27.5]} 22. Nxe2 {[%clk
0:02:24.8]} 22... Re8 {[%clk 0:01:27.5]} 23. Ng3 {[%clk 0:02:19.4]} 23... h5
{[%clk 0:01:27]} 24. Re1 {[%clk 0:02:18.2]} 24... h4 {[%clk 0:01:16.6]} 25. Nf1
{[%clk 0:02:12.1]} 25... Rxe1 {[%clk 0:01:14.8]} 26. Bxe1 {[%clk 0:02:07.5]}
26... Nh5 {[%clk 0:01:11.8]} 27. g3 {[%clk 0:02:07.6]} 27... Bh3 {[%clk
0:01:06.6]} 28. f4 {[%clk 0:02:05.4]} 28... Bxf1 {[%clk 0:01:02.7]} 29. Kxf1
{[%clk 0:02:05.2]} 29... hxg3 {[%clk 0:01:03]} 30. hxg3 {[%clk 0:02:04.9]} 30...
f5 {[%clk 0:01:03.3]} 31. Ke2 {[%clk 0:01:58.3]} 31... Nf6 {[%clk 0:00:57.3]}
32. Kf3 {[%clk 0:01:58.5]} 32... Ne4 {[%clk 0:00:54.1]} 33. g4 {[%clk
0:01:56.6]} 33... b5 {[%clk 0:00:47]} 34. gxf5 {[%clk 0:01:52.5]} 34... gxf5
{[%clk 0:00:46.7]} 35. b3 {[%clk 0:01:49.4]} 35... a5 {[%clk 0:00:39.8]} 36. Ke3
{[%clk 0:01:29.1]} 36... Kf7 {[%clk 0:00:38.7]} 37. Bd3 {[%clk 0:01:06.1]} 37...
Ke6 {[%clk 0:00:37.9]} 38. c4 {[%clk 0:01:04.5]} 38... b4 {[%clk 0:00:34.9]} 39.
cxd5+ {[%clk 0:00:58.7]} 39... cxd5 {[%clk 0:00:35.1]} 40. Be2 {[%clk
0:00:54.5]} 40... Be7 {[%clk 0:00:31.3]} 41. Bf3 {[%clk 0:00:46.5]} 41... Bf6
{[%clk 0:00:30.8]} 42. Be2 {[%clk 0:00:44.6]} 42... Nd6 {[%clk 0:00:30.8]} 43.
Bd3 {[%clk 0:00:41.6]} 43... Bd8 {[%clk 0:00:30.3]} 44. Bf2 {[%clk 0:00:40.4]}
44... Nc8 {[%clk 0:00:27.8]} 45. Kd2 {[%clk 0:00:34]} 45... Bf6 {[%clk
0:00:27.5]} 46. Ba6 {[%clk 0:00:32.7]} 46... Nd6 {[%clk 0:00:21.9]} 47. Ke3
{[%clk 0:00:32.8]} 47... Kd7 {[%clk 0:00:20.5]} 48. Be1 {[%clk 0:00:31]} 48...
Ne4 {[%clk 0:00:18.6]} 49. Bb5+ {[%clk 0:00:29.4]} 49... Kd6 {[%clk 0:00:18.6]}
50. Be8 {[%clk 0:00:29.4]} 50... Bd8 {[%clk 0:00:17.7]} 51. Bh5 {[%clk
0:00:24.8]} 51... Ke6 {[%clk 0:00:17.5]} 52. Bf3 {[%clk 0:00:23.4]} 52... Bc7
{[%clk 0:00:17.4]} 53. Be2 {[%clk 0:00:21.3]} 53... Nf6 {[%clk 0:00:16.7]} 54.
Ba6 {[%clk 0:00:14.6]} 54... Ng4+ {[%clk 0:00:16.8]} 55. Kf3 {[%clk 0:00:15.3]}
55... Bb6 {[%clk 0:00:17.1]} 56. Bh4 {[%clk 0:00:07.3]} 56... Kd7 {[%clk
0:00:17.4]} 57. Bd3 {[%clk 0:00:06.3]} 57... Ke6 {[%clk 0:00:15.4]} 58. Ba6
{[%clk 0:00:06.8]} 58... Kd7 {[%clk 0:00:07.6]} 59. Bb5+ {[%clk 0:00:05.6]}
59... Kd6 {[%clk 0:00:07.1]} 60. Bd3 {[%clk 0:00:03]} 60... Ke6 {[%clk
0:00:06.7]} 61. Ba6 {[%clk 0:00:03.2]} 1/2-1/2

[Event "*** Titled Tuesday Blitz"]
[Site "Chess.com"]
[Date "2021.02.02"]
[Round "8"]
[White "SHIVACalypso"]
[Black "dukicz123"]
[Result "0-1"]
[WhiteElo "2378"]
[BlackElo "2578"]
[TimeControl "180+1"]
[EndTime "11:31:10 PST"]
[Termination "dukicz123 won on time"]

1. Nf3 {[%clk 0:03:00.9]} 1... Nf6 {[%clk 0:03:00]} 2. c4 {[%clk 0:02:59.8]}
2... g6 {[%clk 0:02:59.4]} 3. g3 {[%clk 0:02:58.9]} 3... Bg7 {[%clk 0:03:00.3]}
4. Bg2 {[%clk 0:02:58.1]} 4... O-O {[%clk 0:03:01.2]} 5. O-O {[%clk 0:02:57.2]}
5... d6 {[%clk 0:03:02.1]} 6. Nc3 {[%clk 0:02:56.5]} 6... e5 {[%clk 0:03:02.3]}
7. d3 {[%clk 0:02:53.3]} 7... Nc6 {[%clk 0:03:00.5]} 8. Rb1 {[%clk 0:02:50.1]}
8... a5 {[%clk 0:03:00.4]} 9. a3 {[%clk 0:02:46.6]} 9... Nd4 {[%clk 0:03:00.6]}
10. b4 {[%clk 0:02:44.7]} 10... axb4 {[%clk 0:02:57.3]} 11. axb4 {[%clk
0:02:45.6]} 11... c6 {[%clk 0:02:58.1]} 12. b5 {[%clk 0:02:44.1]} 12... Bd7
{[%clk 0:02:43.7]} 13. e3 {[%clk 0:02:37.6]} 13... Nxf3+ {[%clk 0:02:27.2]} 14.
Bxf3 {[%clk 0:02:38.5]} 14... Re8 {[%clk 0:02:26.3]} 15. Qb3 {[%clk 0:02:36.7]}
15... Qc8 {[%clk 0:02:07.3]} 16. bxc6 {[%clk 0:02:32.5]} 16... bxc6 {[%clk
0:02:08.2]} 17. Qb7 {[%clk 0:02:31.2]} 17... Rb8 {[%clk 0:02:00.6]} 18. Qxc8
{[%clk 0:02:30.3]} 18... Rexc8 {[%clk 0:02:00.5]} 19. Ba3 {[%clk 0:02:30.5]}
19... Bf8 {[%clk 0:01:57.2]} 20. Kg2 {[%clk 0:02:01.6]} 20... h5 {[%clk
0:01:44.5]} 21. h4 {[%clk 0:01:59.9]} 21... Bg4 {[%clk 0:01:37.9]} 22. Ne4
{[%clk 0:01:47.9]} 22... Bxf3+ {[%clk 0:01:19.2]} 23. Kxf3 {[%clk 0:01:48.8]}
23... Ne8 {[%clk 0:01:13.4]} 24. Nc3 {[%clk 0:01:28.1]} 24... f5 {[%clk
0:01:07.6]} 25. Ke2 {[%clk 0:01:23.5]} 25... Kf7 {[%clk 0:01:07.2]} 26. d4
{[%clk 0:01:22.8]} 26... exd4 {[%clk 0:01:01.6]} 27. exd4 {[%clk 0:01:23.7]}
27... Bg7 {[%clk 0:01:01.9]} 28. Kd3 {[%clk 0:01:22.8]} 28... Ke6 {[%clk
0:00:55.8]} 29. Ne2 {[%clk 0:01:20.8]} 29... Bh6 {[%clk 0:00:52.3]} 30. Rfe1
{[%clk 0:01:17.6]} 30... Kd7 {[%clk 0:00:51.3]} 31. Ng1 {[%clk 0:01:08]} 31...
Nf6 {[%clk 0:00:50.2]} 32. f3 {[%clk 0:01:04.2]} 32... f4 {[%clk 0:00:45.3]} 33.
Ne2 {[%clk 0:01:00.9]} 33... fxg3 {[%clk 0:00:45.1]} 34. Nxg3 {[%clk 0:01:01.8]}
34... Bf4 {[%clk 0:00:40]} 35. Ne4 {[%clk 0:00:56.5]} 35... Nxe4 {[%clk
0:00:37.7]} 36. fxe4 {[%clk 0:00:57.4]} 36... Bg3 {[%clk 0:00:33.8]} 37. Rg1
{[%clk 0:00:43.7]} 37... Rxb1 {[%clk 0:00:33.1]} 38. Rxb1 {[%clk 0:00:43.9]}
38... Bxh4 {[%clk 0:00:34]} 39. e5 {[%clk 0:00:42.9]} 39... d5 {[%clk
0:00:24.6]} 40. Rb7+ {[%clk 0:00:38.6]} 40... Ke6 {[%clk 0:00:24.6]} 41. Rg7
{[%clk 0:00:29.1]} 41... Ra8 {[%clk 0:00:17.9]} 42. Bd6 {[%clk 0:00:23.4]} 42...
Kf5 {[%clk 0:00:16.2]} 43. Rf7+ {[%clk 0:00:16.6]} 43... Ke6 {[%clk 0:00:16.5]}
44. Rg7 {[%clk 0:00:17.1]} 44... Kf5 {[%clk 0:00:17]} 45. cxd5 {[%clk 0:00:17]}
45... cxd5 {[%clk 0:00:17]} 46. Rf7+ {[%clk 0:00:17.2]} 46... Ke6 {[%clk
0:00:17.6]} 47. Rg7 {[%clk 0:00:16.3]} 47... Kf5 {[%clk 0:00:17.9]} 48. Rf7+
{[%clk 0:00:15.1]} 48... Kg4 {[%clk 0:00:17.5]} 49. e6 {[%clk 0:00:13.8]} 49...
Re8 {[%clk 0:00:12.9]} 50. e7 {[%clk 0:00:12.9]} 50... Bg5 {[%clk 0:00:13.3]}
51. Rf8 {[%clk 0:00:11.5]} 51... Rxe7 {[%clk 0:00:13.8]} 52. Bxe7 {[%clk
0:00:11.3]} 52... Bxe7 {[%clk 0:00:14.7]} 53. Rf7 {[%clk 0:00:11.9]} 53... Bg5
{[%clk 0:00:11.3]} 54. Ke2 {[%clk 0:00:06.2]} 54... h4 {[%clk 0:00:08.8]} 55.
Rd7 {[%clk 0:00:03.9]} 55... Kg3 {[%clk 0:00:08.2]} 56. Rxd5 {[%clk 0:00:03.1]}
56... Bf4 {[%clk 0:00:09.1]} 57. Rd7 {[%clk 0:00:02.2]} 57... g5 {[%clk
0:00:10]} 58. Rh7 {[%clk 0:00:02.1]} 58... g4 {[%clk 0:00:09.8]} 59. d5 {[%clk
0:00:02.2]} 59... h3 {[%clk 0:00:10.4]} 60. Kd3 {[%clk 0:00:02.5]} 60... Kg2
{[%clk 0:00:10]} 61. Ke4 {[%clk 0:00:02.7]} 61... Bb8 {[%clk 0:00:08.8]} 62. Kf5
{[%clk 0:00:02]} 62... g3 {[%clk 0:00:08.7]} 0-1